bitfinex/quotes_BTCUSD_20260110
["timestamp","ask_amount","ask_price","bid_price","bid_amount"]
[1768011281699,0.03,90731.0,90725.0,0.10208]
[1768011282795,0.03,90730.0,90725.0,0.10208]
[1768011283343,0.03,90730.0,90727.0,0.01102207]
[1768011283542,0.0489951,90737.0,90726.0,0.01102219]
[1768011283742,0.03,90736.0,90726.0,0.01102219]
[1768011283953,0.03,90736.0,90725.0,0.11310232]
[1768011284604,0.03,90736.0,90726.0,0.01102219]
[1768011285013,0.03,90736.0,90725.0,0.11310232]
[1768011285558,0.03,90731.0,90725.0,0.11310232]
[1768011286088,0.0489951,90732.0,90725.0,0.11310232]
[1768011286289,0.0489951,90732.0,90726.0,0.01102219]
[1768011286472,0.0489951,90732.0,90725.0,0.11310232]
[1768011288228,0.0489951,90732.0,90725.0,0.10208]
[1768011288633,0.0489951,90732.0,90727.0,0.01102207]
[1768011288835,0.0489951,90732.0,90725.0,0.11310232]
[1768011289014,0.0489951,90732.0,90726.0,0.01102219]
[1768011289218,0.00070338,90739.0,90726.0,0.01102219]
[1768011289219,0.03,90738.0,90726.0,0.01102219]
[1768011290054,0.03,90738.0,90727.0,0.01102207]
[1768011290241,0.03,90738.0,90726.0,0.01102219]
[1768011290481,0.03,90738.0,90727.0,0.01102207]
[1768011290876,0.03,90738.0,90726.0,0.01102219]
[1768011291020,0.03,90738.0,90727.0,0.01102207]
[1768011291653,0.03,90738.0,90726.0,0.01102219]
[1768011291861,0.03,90738.0,90727.0,0.01102207]
[1768011293294,0.03,90734.0,90725.0,0.10208]
[1768011293469,0.03,90729.0,90725.0,0.08]
[1768011294286,0.03,90727.0,90725.0,0.08]
[1768011295274,0.03,90730.0,90725.0,0.08]
[1768011295632,0.01102146,90732.0,90725.0,0.07469449]
[1768011295633,0.03,90727.0,90725.0,0.07469449]
[1768011295840,0.03,90727.0,90725.0,0.07369549]
[1768011296681,0.03,90726.0,90725.0,0.07369549]
[1768011297930,0.03,90728.0,90725.0,0.07369549]
[1768011298580,0.07816134,90726.0,90725.0,0.07369549]
[1768011301940,0.07816134,90726.0,90725.0,0.02369549]
[1768011302140,0.07816134,90726.0,90725.0,0.02365035]
[1768011302733,0.07816134,90726.0,90716.0,0.02208]
[1768011303130,0.03,90724.0,90716.0,0.02208]
[1768011303507,0.03,90721.0,90716.0,0.02208]
[1768011304572,0.03,90720.0,90716.0,0.02208]
[1768011305759,0.03,90719.0,90716.0,0.02208]
[1768011306777,0.01102244,90724.0,90716.0,0.02208]
[1768011307189,0.01102232,90725.0,90716.0,0.02208]
[1768011307390,0.01102219,90726.0,90716.0,0.02208]
[1768011307620,0.01102207,90727.0,90716.0,0.07168714]
[1768011307825,0.03,90726.0,90716.0,0.07168714]
[1768011308380,0.03,90724.0,90716.0,0.07168714]
[1768011308579,0.03,90718.0,90717.0,0.02208]
[1768011308779,0.07869777,90718.0,90717.0,0.02208]
[1768011309232,0.03,90718.0,90717.0,0.02208]
[1768011309691,0.03,90718.0,90708.0,0.00050658]
[1768011309692,0.01102317,90718.0,90710.0,0.02208]
[1768011309913,0.07869777,90711.0,90710.0,0.02208]
[1768011310177,0.07869777,90711.0,90708.0,0.00050658]
[1768011310178,0.07869777,90709.0,90708.0,0.00050658]
[1768011310967,0.03,90709.0,90708.0,0.00050658]
[1768011313127,0.07869777,90709.0,90708.0,0.00050658]
[1768011319112,0.13381909,90709.0,90708.0,0.00050658]
[1768011320295,0.07869777,90709.0,90708.0,0.00050658]
[1768011321511,0.07869777,90709.0,90702.0,0.02208]
[1768011321512,0.03,90704.0,90702.0,0.0205836]
[1768011322785,0.03,90703.0,90702.0,0.0205836]
[1768011323746,0.03,90705.0,90702.0,0.0205836]
[1768011324561,0.0110245,90707.0,90705.0,0.000999]
[1768011324776,0.03,90707.0,90705.0,0.000999]
[1768011324973,0.03,90707.0,90702.0,0.0205836]
[1768011325752,0.03,90706.0,90702.0,0.0205836]
[1768011325955,0.26270403,90712.0,90702.0,0.0205836]
[1768011325956,0.26270403,90712.0,90706.0,0.000999]
[1768011326151,0.26270403,90712.0,90702.0,0.0205836]
[1768011326950,0.03,90711.0,90702.0,0.0205836]
[1768011327690,0.07869777,90711.0,90702.0,0.0205836]
[1768011329784,0.03,90709.0,90702.0,0.0205836]
[1768011329981,0.07869777,90709.0,90702.0,0.0205836]
[1768011331128,0.07869777,90709.0,90702.0,0.02063019]
[1768011332247,0.03,90708.0,90702.0,0.02063019]
[1768011333271,0.03,90711.0,90702.0,0.02063019]
[1768011333484,0.07587611,90711.0,90702.0,0.02063019]
[1768011333691,0.03,90705.0,90702.0,0.02063019]
[1768011333889,0.04587611,90706.0,90705.0,0.000999]
[1768011334255,0.04587611,90706.0,90702.0,0.02063019]
[1768011334480,0.01102377,90713.0,90702.0,0.02063019]
[1768011334481,0.04587611,90713.0,90702.0,0.02063019]
[1768011334987,0.05689988,90713.0,90702.0,0.02063019]
[1768011335328,0.04102389,90712.0,90702.0,0.02063019]
[1768011335678,0.03,90712.0,90702.0,0.02063019]
[1768011336428,0.29288593,90712.0,90702.0,0.02063019]
[1768011339022,0.30390982,90712.0,90702.0,0.02063019]
[1768011340181,0.03,90710.0,90702.0,0.02063019]
[1768011340395,0.03,90708.0,90702.0,0.02063019]
[1768011343119,0.03,90708.0,90702.0,0.0316553]
[1768011343249,0.03,90708.0,90702.0,0.02063019]
[1768011344270,0.03,90707.0,90702.0,0.0316553]
[1768011344397,0.03,90707.0,90703.0,0.01102499]
[1768011344837,0.03,90707.0,90702.0,0.0316553]
[1768011345143,0.03,90711.0,90707.0,0.000999]
[1768011345325,0.03,90711.0,90703.0,0.01102499]
[1768011345909,0.26288593,90713.0,90711.0,0.000999]
[1768011346109,0.00012609,90711.0,90706.0,0.01102462]
[1768011346518,0.00012609,90711.0,90705.0,0.01102475]
[1768011346696,0.00012609,90711.0,90706.0,0.01102462]
[1768011346897,0.00012609,90711.0,90705.0,0.01102475]
[1768011348333,0.00012609,90711.0,90706.0,0.01102462]
[1768011348731,0.00012609,90711.0,90705.0,0.01102475]
[1768011349608,0.00012609,90711.0,90706.0,0.01102462]
[1768011350594,0.00012609,90711.0,90703.0,0.05940884]
[1768011350927,0.00012609,90711.0,90703.0,0.04838385]
[1768011351544,0.00012609,90711.0,90703.0,0.05940884]
[1768011352344,0.00012609,90711.0,90704.0,0.01102487]
[1768011352973,0.00012609,90711.0,90705.0,0.01102475]
[1768011353290,0.00012609,90711.0,90704.0,0.01102487]
[1768011353492,0.00012609,90711.0,90705.0,0.01102475]
[1768011353899,0.00012609,90711.0,90704.0,0.01102487]
[1768011354103,0.00012609,90711.0,90705.0,0.01102475]
[1768011354317,0.00012609,90711.0,90703.0,0.05940884]
[1768011354519,0.00012609,90711.0,90703.0,0.04838385]
[1768011354953,0.00012609,90711.0,90703.0,0.05940884]
[1768011355161,0.00012609,90711.0,90703.0,0.04838385]
[1768011356724,0.00012609,90711.0,90702.0,4.659e-05]
[1768011357071,0.03012609,90711.0,90702.0,4.659e-05]
[1768011357921,0.03012609,90711.0,90702.0,0.0110717]
[1768011358700,0.03012609,90711.0,90702.0,4.659e-05]
[1768011358701,0.00012609,90711.0,90702.0,4.659e-05]
[1768011360354,0.03,90710.0,90702.0,4.659e-05]
[1768011360503,0.03,90708.0,90702.0,4.659e-05]
[1768011361511,0.04115011,90711.0,90702.0,4.659e-05]
[1768011362565,0.03012609,90711.0,90702.0,4.659e-05]
[1768011362752,0.03,90710.0,90702.0,4.659e-05]
[1768011363904,0.03,90709.0,90702.0,4.659e-05]
[1768011364888,0.03012609,90711.0,90702.0,4.659e-05]
[1768011365406,0.04115011,90711.0,90702.0,4.659e-05]
[1768011366508,0.03,90708.0,90702.0,4.659e-05]
[1768011367080,0.03,90706.0,90702.0,4.659e-05]
[1768011367495,0.04670071,90703.0,90702.0,5.9e-07]
[1768011367705,0.07670071,90703.0,90702.0,5.9e-07]
[1768011368125,0.01102462,90706.0,90698.0,0.0001511]
[1768011368126,0.07670071,90699.0,90698.0,0.0001511]
[1768011368334,0.07670071,90699.0,90695.0,0.02208]
[1768011368335,0.03,90697.0,90695.0,0.02208]
[1768011368535,0.07670071,90696.0,90695.0,0.02208]
[1768011369032,0.03,90696.0,90695.0,0.02208]
[1768011370076,0.27391068,90705.0,90696.0,0.000152]
[1768011370276,0.01102487,90704.0,90696.0,0.000152]
[1768011370689,0.01102487,90704.0,90695.0,0.02208]
[1768011370890,0.03,90704.0,90695.0,0.02208]
[1768011372576,0.04102487,90704.0,90695.0,0.02208]
[1768011373138,0.03,90704.0,90695.0,0.02208]
[1768011383259,0.03,90704.0,90695.0,0.03310596]
[1768011383485,0.03,90704.0,90695.0,0.02208]
[1768011384213,0.03,90704.0,90695.0,0.03310596]
[1768011386137,0.03,90704.0,90695.0,0.02208]
[1768011392781,0.03,90703.0,90695.0,0.02208]
[1768011393524,0.03,90706.0,90695.0,0.02208]
[1768011393784,0.04102462,90706.0,90695.0,0.02208]
[1768011394455,0.03,90706.0,90695.0,0.02208]
[1768011395984,0.04102462,90706.0,90695.0,0.02208]
[1768011396643,0.03,90706.0,90695.0,0.02208]
[1768011401810,0.03,90704.0,90695.0,0.02208]
[1768011402595,0.03,90702.0,90695.0,0.02208]
[1768011404567,0.03,90701.0,90695.0,0.02208]
[1768011404721,0.01102475,90705.0,90695.0,0.02208]
[1768011406005,0.03,90704.0,90695.0,0.02208]
[1768011407102,0.01102462,90706.0,90695.0,0.02208]
[1768011407103,0.03,90703.0,90695.0,0.02208]
[1768011407870,0.03,90702.0,90695.0,0.02208]
[1768011409000,0.04102475,90705.0,90695.0,0.02208]
[1768011409726,0.03,90705.0,90695.0,0.02208]
[1768011410252,0.03,90706.0,90695.0,0.02208]
[1768011410446,0.02975401,90707.0,90695.0,0.02208]
[1768011410827,0.01102487,90704.0,90695.0,0.02208]
[1768011411034,0.03,90701.0,90695.0,0.02208]
[1768011412165,0.03,90700.0,90695.0,0.02208]
[1768011413070,0.03,90699.0,90695.0,0.02208]
[1768011414191,0.04102475,90705.0,90695.0,0.02208]
[1768011416493,0.03,90705.0,90695.0,0.02208]
[1768011417744,0.04102475,90705.0,90695.0,0.02208]
[1768011418315,0.08762843,90705.0,90695.0,0.02208]
[1768011418904,0.01102487,90704.0,90695.0,0.02208]
[1768011419113,0.03,90703.0,90695.0,0.02208]
[1768011420013,0.03,90701.0,90695.0,0.02208]
[1768011421021,0.03,90700.0,90695.0,0.02208]
[1768011421223,0.03,90700.0,90696.0,0.04742765]
[1768011422007,0.03,90700.0,90695.0,0.02208]
[1768011422215,0.03,90699.0,90695.0,0.02208]
[1768011422859,0.01102462,90706.0,90695.0,0.02208]
[1768011422860,0.01102462,90706.0,90699.0,0.000152]
[1768011423219,0.03,90706.0,90695.0,0.02208]
[1768011423417,0.03,90706.0,90695.0,0.07155545]
[1768011423628,0.03,90706.0,90696.0,0.01102584]
[1768011423847,0.03,90706.0,90697.0,0.01102572]
[1768011424803,0.03,90706.0,90695.0,0.08258141]
[1768011424962,0.03,90706.0,90695.0,0.07155545]
[1768011425395,0.03,90706.0,90695.0,0.08258141]
[1768011425573,0.03,90706.0,90695.0,0.07155545]
[1768011425782,0.03,90706.0,90695.0,0.08258141]
[1768011425982,0.03,90706.0,90696.0,0.01102584]
[1768011427848,0.03,90706.0,90695.0,0.08258141]
[1768011428557,0.03,90706.0,90696.0,0.01102584]
[1768011429419,0.03,90706.0,90697.0,0.01102572]
[1768011430737,0.03,90706.0,90696.0,0.01102584]
[1768011430939,0.03,90705.0,90698.0,0.0110256]
[1768011431127,0.06868368,90712.0,90705.0,0.000152]
[1768011431306,0.06868368,90712.0,90698.0,0.0110256]
[1768011431307,0.04660368,90711.0,90698.0,0.0110256]
[1768011431924,0.03,90710.0,90699.0,0.01102547]
[1768011432123,0.03,90710.0,90698.0,0.0110256]
[1768011432330,0.07660368,90710.0,90698.0,0.0110256]
[1768011432908,0.03,90710.0,90698.0,0.0110256]
[1768011433585,0.04102402,90711.0,90697.0,0.01102572]
[1768011433910,0.04102402,90711.0,90698.0,0.0110256]
[1768011435460,0.04102402,90711.0,90697.0,0.06050117]
[1768011436710,0.03,90711.0,90698.0,0.0110256]
[1768011436849,0.03,90711.0,90699.0,0.01102547]
[1768011437674,0.03,90711.0,90698.0,0.0110256]
[1768011438101,0.03,90711.0,90699.0,0.01102547]
[1768011438721,0.03,90711.0,90698.0,0.0110256]
[1768011439028,0.03,90711.0,90699.0,0.01102547]
[1768011440471,0.04102402,90711.0,90697.0,0.04947545]
[1768011440674,0.03,90711.0,90697.0,0.04947545]
[1768011441140,0.03,90711.0,90699.0,0.01102547]
[1768011441750,0.03,90705.0,90695.0,0.02208]
[1768011441932,0.04102475,90705.0,90695.0,0.02208]
[1768011442111,0.03,90703.0,90695.0,0.02208]
[1768011442498,0.04102499,90703.0,90695.0,0.02208]
[1768011442701,0.03,90703.0,90695.0,0.02208]
[1768011443167,0.04102499,90703.0,90695.0,0.02208]
[1768011443879,0.03,90702.0,90695.0,0.02208]
[1768011445513,0.04102487,90704.0,90695.0,0.07155545]
[1768011445713,0.03,90701.0,90695.0,0.02208]
[1768011448775,0.04102523,90701.0,90695.0,0.02208]
[1768011449685,0.03,90701.0,90695.0,0.02208]
[1768011449829,0.04102523,90701.0,90695.0,0.02208]
[1768011450281,0.03,90701.0,90695.0,0.02208]
[1768011450696,0.03,90700.0,90695.0,0.02208]
[1768011451787,0.03,90699.0,90695.0,0.02208]
[1768011452919,0.03,90702.0,90695.0,0.02208]
[1768011454432,0.03,90703.0,90695.0,0.02208]
[1768011457502,0.04102499,90703.0,90695.0,0.02208]
[1768011457711,0.03,90701.0,90695.0,0.02208]
[1768011458874,0.03,90700.0,90695.0,0.02208]
[1768011459841,0.03,90703.0,90695.0,0.02208]
[1768011460164,0.04102499,90703.0,90695.0,0.02208]
[1768011460333,0.03,90701.0,90695.0,0.02208]
[1768011461519,0.03,90702.0,90695.0,0.02208]
[1768011464082,0.03,90701.0,90695.0,0.02208]
[1768011465196,0.03,90700.0,90695.0,0.02208]
[1768011466287,0.03,90699.0,90695.0,0.02208]
[1768011467172,0.03,90704.0,90695.0,0.02208]
[1768011467368,0.04102487,90704.0,90695.0,0.02208]
[1768011467900,0.03,90702.0,90695.0,0.02208]
[1768011468974,0.03,90701.0,90695.0,0.02208]
[1768011470058,0.03,90700.0,90695.0,0.02208]
[1768011471139,0.03,90699.0,90695.0,0.02208]
[1768011472142,0.03,90698.0,90695.0,0.02208]
[1768011472341,0.01087688,90703.0,90695.0,0.02208]
[1768011472750,0.01102487,90704.0,90695.0,0.02208]
[1768011472906,0.01102499,90703.0,90695.0,0.02208]
[1768011473108,0.03,90703.0,90695.0,0.02208]
[1768011474198,0.03,90701.0,90695.0,0.02208]
[1768011475513,0.03,90700.0,90695.0,0.02208]
[1768011476716,0.03,90701.0,90695.0,0.02208]
[1768011477801,0.03,90700.0,90695.0,0.02208]
[1768011478722,0.03,90699.0,90695.0,0.02208]
[1768011479833,0.03,90698.0,90695.0,0.02208]
[1768011481267,0.03,90702.0,90695.0,0.02208]
[1768011482568,0.03,90700.0,90695.0,0.02208]
[1768011483590,0.03,90699.0,90695.0,0.02208]
[1768011484746,0.03,90703.0,90695.0,0.02208]
[1768011486045,0.03,90702.0,90695.0,0.02208]
[1768011487098,0.03,90701.0,90695.0,0.02208]
[1768011488093,0.03,90704.0,90695.0,0.02208]
[1768011488329,0.03,90704.0,90695.0,0.03310596]
[1768011488706,0.03,90704.0,90695.0,0.02208]
[1768011489102,0.03,90704.0,90695.0,0.03310596]
[1768011489334,0.03,90704.0,90695.0,0.02208]
[1768011489932,0.03,90704.0,90695.0,0.03310596]
[1768011490506,0.03,90704.0,90695.0,0.02208]
[1768011493355,0.03,90703.0,90695.0,0.02208]
[1768011494125,0.03,90706.0,90695.0,0.02208]
[1768011496125,0.03,90707.0,90695.0,0.02208]
[1768011497199,0.03,90709.0,90696.0,0.01102584]
[1768011498121,0.04102426,90709.0,90695.0,0.03310596]
[1768011498441,0.04102426,90709.0,90696.0,0.01102584]
[1768011498647,0.03,90707.0,90695.0,0.02208]
[1768011498804,0.03,90707.0,90695.0,0.03310596]
[1768011498999,0.03,90707.0,90695.0,0.02208]
[1768011499300,0.0410245,90707.0,90695.0,0.02208]
[1768011499690,0.03,90707.0,90695.0,0.02208]
[1768011500239,0.0410245,90707.0,90695.0,0.02208]
[1768011501958,0.03,90707.0,90695.0,0.03310596]
[1768011503767,0.0410245,90707.0,90695.0,0.02208]
[1768011504205,0.03,90707.0,90695.0,0.03310596]
[1768011505613,0.03,90706.0,90695.0,0.03310596]
[1768011506949,0.04102438,90708.0,90695.0,0.03310596]
[1768011508069,0.03,90708.0,90695.0,0.03310596]
[1768011508355,0.03,90706.0,90695.0,0.02208]
[1768011509255,0.04102438,90708.0,90695.0,0.03310596]
[1768011510029,0.04102438,90708.0,90695.0,0.02208]
[1768011510357,0.03,90705.0,90695.0,0.02208]
[1768011511513,0.03,90704.0,90695.0,0.02208]
[1768011512734,0.03,90703.0,90695.0,0.02208]
[1768011513619,0.03,90706.0,90695.0,0.02208]
[1768011514019,0.04102462,90706.0,90695.0,0.02208]
[1768011514461,0.03,90706.0,90695.0,0.02208]
[1768011515194,0.03,90705.0,90695.0,0.02208]
[1768011516154,0.03,90704.0,90695.0,0.02208]
[1768011516694,0.03,90704.0,90695.0,0.03310596]
[1768011517398,0.01102438,90708.0,90695.0,0.03310596]
[1768011517895,0.0110245,90707.0,90695.0,0.02208]
[1768011519026,0.03,90707.0,90695.0,0.02208]
[1768011520237,0.03,90707.0,90695.0,0.03310596]
[1768011521931,0.04102438,90708.0,90695.0,0.03310596]
[1768011522533,0.03,90708.0,90695.0,0.03310596]
[1768011522833,0.03,90708.0,90696.0,0.01102584]
[1768011523039,0.03,90707.0,90696.0,0.01102584]
[1768011523598,0.03,90707.0,90697.0,0.01102572]
[1768011523800,0.03,90707.0,90696.0,0.01102584]
[1768011524025,0.03,90709.0,90696.0,0.01102584]
[1768011524217,0.04102426,90709.0,90696.0,0.01102584]
[1768011524430,0.03,90709.0,90695.0,0.03310596]
[1768011524866,0.03,90707.0,90696.0,0.01102584]
[1768011525064,0.03,90707.0,90696.0,0.05727656]
[1768011525654,0.01102341,90716.0,90703.0,0.04625072]
[1768011525876,0.03050655,90717.0,90707.0,0.04625072]
[1768011526132,0.03050655,90717.0,90714.0,0.04625072]
[1768011526373,0.03050655,90717.0,90712.0,0.01102389]
[1768011526558,0.32325021,90730.0,90718.0,0.01102317]
[1768011526559,0.0001511,90730.0,90718.0,0.01102317]
[1768011526732,0.0001511,90730.0,90717.0,0.01102329]
[1768011526950,0.0001511,90730.0,90718.0,0.01102317]
[1768011526951,0.03,90726.0,90718.0,0.01102317]
[1768011527194,0.03,90726.0,90718.0,0.04625072]
[1768011527195,0.03,90723.0,90718.0,0.04625072]
[1768011527360,0.0300854,90723.0,90718.0,0.04625072]
[1768011527571,0.0300854,90723.0,90718.0,0.04525172]
[1768011527735,0.0300854,90723.0,90711.0,0.05727474]
[1768011527922,0.0300854,90723.0,90713.0,0.04625072]
[1768011528114,0.03,90722.0,90714.0,0.05727437]
[1768011528321,0.03,90722.0,90714.0,0.04625072]
[1768011529493,0.03,90721.0,90714.0,0.04625072]
[1768011530328,8.54e-05,90723.0,90714.0,0.04625072]
[1768011531496,8.54e-05,90723.0,90714.0,0.05727437]
[1768011531995,8.54e-05,90723.0,90714.0,0.04625072]
[1768011532552,0.03,90722.0,90714.0,0.04625072]
[1768011533500,8.54e-05,90723.0,90714.0,0.04625072]
[1768011533895,8.54e-05,90723.0,90714.0,0.04610013]
[1768011534935,8.54e-05,90723.0,90714.0,0.05712378]
[1768011535539,8.54e-05,90723.0,90714.0,0.05697321]
[1768011535739,8.54e-05,90723.0,90714.0,0.04594956]
[1768011535740,0.0300854,90723.0,90714.0,0.04594956]
[1768011536768,8.54e-05,90723.0,90713.0,0.01102377]
[1768011537246,0.03,90725.0,90716.0,0.04655301]
[1768011537455,0.0001511,90730.0,90708.0,0.00050658]
[1768011537456,0.0001511,90730.0,90727.0,0.01102207]
[1768011537665,0.0001511,90730.0,90726.0,0.04655301]
[1768011538371,0.0001511,90730.0,90725.0,0.01193632]
[1768011538967,0.0001511,90730.0,90726.0,0.01102219]
[1768011539324,0.04790384,90728.0,90726.0,0.01102219]
[1768011539549,0.03,90727.0,90726.0,0.01087171]
[1768011539972,0.03,90727.0,90725.0,0.000914]
[1768011540353,0.0001511,90730.0,90727.0,0.01102207]
[1768011540791,0.0001511,90730.0,90722.0,0.01102268]
[1768011540792,0.01102365,90714.0,90703.0,0.03307806]
[1768011541006,0.1183441,90709.0,90703.0,0.03307806]
[1768011541213,0.1183441,90709.0,90693.0,0.04655301]
[1768011541214,0.03033388,90707.0,90693.0,0.04655301]
[1768011541410,0.03,90704.0,90693.0,0.04655301]
[1768011542016,0.01102499,90703.0,90693.0,0.04655301]
[1768011542192,0.03,90702.0,90698.0,0.04670411]
[1768011543053,0.03,90704.0,90698.0,0.0001511]
[1768011544047,0.03,90703.0,90698.0,0.0001511]
[1768011544577,0.03,90703.0,90698.0,0.04866861]
[1768011545254,0.03,90702.0,90698.0,0.04866861]
[1768011546453,0.03,90701.0,90698.0,0.04866861]
[1768011547255,0.00033388,90707.0,90698.0,0.04866861]
[1768011547533,0.03,90705.0,90698.0,0.04866861]
[1768011548564,0.03,90704.0,90698.0,0.04866861]
[1768011549805,0.03,90703.0,90698.0,0.04866861]
[1768011550756,0.01135838,90707.0,90698.0,0.04866861]
[1768011550757,0.03,90702.0,90698.0,0.04866861]
[1768011551805,0.03033388,90707.0,90698.0,0.04866861]
[1768011552216,0.03,90705.0,90698.0,0.04866861]
[1768011553446,0.00033388,90707.0,90698.0,0.04866861]
[1768011553649,0.03,90705.0,90698.0,0.04866861]
[1768011558687,0.03,90705.0,90698.0,0.05969421]
[1768011558892,0.00033388,90707.0,90698.0,0.05969421]
[1768011558893,0.03,90704.0,90703.0,0.01102499]
[1768011559103,0.02241388,90707.0,90704.0,0.04851751]
[1768011559683,0.02208,90711.0,90704.0,0.04851751]
[1768011559887,0.01102341,90716.0,90704.0,0.04851751]
[1768011559888,0.03,90710.0,90704.0,0.04851751]
[1768011560932,0.03,90711.0,90704.0,0.04859127]
[1768011561083,0.03,90711.0,90704.0,0.05961614]
[1768011561289,0.03,90711.0,90706.0,0.04851751]
[1768011565820,0.11093066,90717.0,90709.0,0.04851751]
[1768011566024,0.08885066,90717.0,90712.0,0.04851751]
[1768011566231,0.08885066,90717.0,90712.0,0.0595414]
[1768011566888,0.03,90716.0,90712.0,0.0595414]
[1768011567752,0.03,90716.0,90714.0,0.04851751]
[1768011574948,0.03,90716.0,90714.0,0.04847238]
[1768011575146,0.03,90716.0,90714.0,0.04842725]
[1768011576711,0.03,90716.0,90707.0,0.05736157]
[1768011577527,0.03,90716.0,90708.0,0.05736145]
[1768011577911,0.03,90716.0,90708.0,0.04633707]
[1768011578132,0.03,90716.0,90708.0,0.05736145]
[1768011578365,0.03,90716.0,90708.0,0.04633707]
[1768011579116,0.03,90716.0,90709.0,0.01102426]
[1768011579541,0.03,90716.0,90710.0,0.01102414]
[1768011579818,0.03,90716.0,90709.0,0.01102426]
[1768011580020,0.03,90716.0,90710.0,0.01102414]
[1768011580224,0.03,90716.0,90709.0,0.01102426]
[1768011581116,0.03,90716.0,90711.0,0.04633707]
[1768011585105,0.03,90716.0,90707.0,0.0110245]
[1768011585540,0.03,90716.0,90708.0,0.01102438]
[1768011585742,0.03,90716.0,90708.0,0.05736145]
[1768011586622,0.03,90716.0,90709.0,0.01102426]
[1768011586830,0.03,90716.0,90708.0,0.05736145]
[1768011587010,0.03,90716.0,90708.0,0.04633707]
[1768011587634,0.03,90716.0,90708.0,0.05736145]
[1768011587866,0.03,90716.0,90708.0,0.04633707]
[1768011588591,0.03,90714.0,90708.0,0.04633707]
[1768011589597,0.03,90713.0,90708.0,0.04633707]
[1768011590543,0.03,90712.0,90708.0,0.04633707]
[1768011591712,0.03,90716.0,90708.0,0.04633707]
[1768011591908,0.03,90716.0,90704.0,0.02215376]
[1768011592114,0.03,90716.0,90704.0,0.06802098]
[1768011592334,0.03,90716.0,90705.0,0.04586722]
[1768011593821,0.04102341,90716.0,90705.0,0.04586722]
[1768011594121,0.03,90716.0,90705.0,0.04586722]
[1768011597807,0.03,90712.0,90704.0,0.02215376]
[1768011598707,0.03,90714.0,90704.0,0.02215376]
[1768011599446,0.03,90714.0,90704.0,0.06802098]
[1768011599587,0.03,90714.0,90705.0,0.04586722]
[1768011600411,0.04102414,90710.0,90704.0,7.376e-05]
[1768011600620,0.03,90710.0,90704.0,7.376e-05]
[1768011600750,0.04102438,90708.0,90704.0,7.376e-05]
[1768011600933,0.05324719,90705.0,90704.0,7.376e-05]
[1768011601132,0.03,90705.0,90704.0,2.864e-05]
[1768011602179,0.03,90705.0,90704.0,0.04589586]
[1768011603602,0.01102377,90713.0,90704.0,0.04589586]
[1768011603798,0.28342035,90714.0,90704.0,0.04589586]
[1768011604305,0.03,90713.0,90704.0,0.04589586]
[1768011604483,0.04102377,90713.0,90704.0,0.04589586]
[1768011604663,0.03,90713.0,90704.0,0.04589586]
[1768011605499,0.04102377,90713.0,90704.0,0.04589586]
[1768011606039,0.03,90713.0,90704.0,0.04589586]
[1768011606260,0.03,90711.0,90704.0,0.04585074]
[1768011606861,0.04102402,90711.0,90704.0,0.04585074]
[1768011607875,0.03,90711.0,90704.0,0.04585074]
[1768011610278,0.04102402,90711.0,90704.0,0.04585074]
[1768011611064,0.03,90711.0,90704.0,0.04585074]
[1768011611262,0.04102402,90711.0,90698.0,0.05983208]
[1768011611515,0.03,90709.0,90698.0,0.05991748]
[1768011611979,0.03,90709.0,90699.0,0.01102547]
[1768011612521,0.03,90709.0,90699.0,0.05968085]
[1768011612932,0.03,90709.0,90699.0,0.04865538]
[1768011616009,0.03,90709.0,90699.0,0.05968085]
[1768011616994,0.03,90709.0,90699.0,0.04865538]
[1768011618381,0.03,90707.0,90699.0,0.04865538]
[1768011619600,0.03,90709.0,90699.0,0.04865538]
[1768011621738,0.03,90707.0,90699.0,0.04865538]
[1768011623268,0.03,90706.0,90699.0,0.04865538]
[1768011624274,0.03,90709.0,90699.0,0.04865538]
[1768011625594,0.03,90707.0,90699.0,0.04865538]
[1768011626732,0.03,90706.0,90699.0,0.04865538]
[1768011627677,0.03,90705.0,90699.0,0.04865538]
[1768011628870,0.03,90704.0,90699.0,0.04865538]
[1768011629922,0.03,90703.0,90699.0,0.04865538]
[1768011631130,0.03,90708.0,90699.0,0.04865538]
[1768011632156,0.03,90707.0,90699.0,0.04865538]
[1768011633183,0.03,90706.0,90699.0,0.04865538]
[1768011634177,0.03,90705.0,90699.0,0.04865538]
[1768011635252,0.03,90709.0,90699.0,0.04865538]
[1768011636456,0.03,90708.0,90699.0,0.04865538]
[1768011636853,0.03,90708.0,90698.0,0.0112621]
[1768011637565,0.03,90707.0,90699.0,0.01102547]
[1768011637833,0.03,90707.0,90698.0,0.0112621]
[1768011637998,0.03,90707.0,90698.0,0.0002365]
[1768011638559,0.03,90706.0,90698.0,0.0112621]
[1768011638966,0.03,90706.0,90698.0,0.0002365]
[1768011639620,0.03,90708.0,90698.0,0.0002365]
[1768011639790,0.03,90708.0,90699.0,0.04832323]
[1768011642467,0.04102438,90708.0,90699.0,0.04832323]
[1768011642670,0.03,90708.0,90699.0,0.04832323]
[1768011642870,0.04102438,90708.0,90699.0,0.04832323]
[1768011643488,0.03,90707.0,90699.0,0.04832323]
[1768011643688,0.03,90707.0,90698.0,0.0002365]
[1768011644560,0.03,90706.0,90698.0,0.0002365]
[1768011645764,0.03,90705.0,90698.0,0.0002365]
[1768011646933,0.03,90708.0,90698.0,0.0002365]
[1768011648469,0.03,90707.0,90698.0,0.0002365]
[1768011649472,0.04102426,90709.0,90698.0,0.0002365]
[1768011650628,0.03,90707.0,90698.0,0.0002365]
[1768011651989,0.0410245,90707.0,90698.0,0.0002365]
[1768011652165,0.0410245,90707.0,90698.0,5e-07]
[1768011652166,0.03,90699.0,90698.0,5e-07]
[1768011656225,0.03,90701.0,90698.0,5e-07]
[1768011674596,0.02208,90707.0,90699.0,0.04796856]
[1768011674830,0.03,90706.0,90702.0,0.01102511]